bitfinex/quotes_SOLUSD_20260311
["timestamp","ask_amount","ask_price","bid_price","bid_amount"]
[1773242601319,4.07626417,85.905,85.874,15.46512507]
[1773242601516,4.07626417,85.913,85.881,3.82015687]
[1773242601708,4.07626417,85.911,85.881,3.82015687]
[1773242602417,7.23751192,85.916,85.881,3.82015687]
[1773242602623,7.23751192,85.916,85.891,3.82015687]
[1773242603416,11.63941104,85.915,85.891,15.46272729]
[1773242603730,4.07626417,85.914,85.891,15.46272729]
[1773242604102,4.07626417,85.914,85.891,11.64257042]
[1773242604903,4.07626417,85.933,85.907,3.82015687]
[1773242605232,4.07626417,85.933,85.891,40.74922885]
[1773242605233,7.59107014,85.95,85.912,40.73936119]
[1773242605523,4.07626417,85.953,85.921,3.82015687]
[1773242606104,4.07626417,85.964,85.931,3.82015687]
[1773242606302,11.63176104,85.972,85.94,7.59107014]
[1773242606497,4.07626417,85.969,85.941,3.82015687]
[1773242606698,4.07626417,85.969,85.932,3.82015687]
[1773242607319,4.07626417,85.957,85.924,11.63819189]
[1773242607923,4.07626417,85.957,85.925,3.82015687]
[1773242608230,11.63264119,85.965,85.931,3.82015687]
[1773242608403,4.07626417,85.964,85.931,3.82015687]
[1773242608805,4.07626417,85.964,85.924,40.73367161]
[1773242608806,7.59107014,85.95,85.924,11.63819189]
[1773242608999,4.07626417,85.951,85.924,11.63819189]
[1773242609302,4.07626417,85.947,85.911,3.82015687]
[1773242609499,4.07626417,85.947,85.92,7.59107014]
[1773242609998,4.07626417,85.947,85.911,3.82015687]
[1773242610724,4.07626417,85.947,85.92,7.59107014]
[1773242610906,4.07626417,85.947,85.922,11.63846279]
[1773242611118,15.71029766,85.955,85.923,3.82015687]
[1773242611312,11.63303063,85.963,85.931,3.82015687]
[1773242611506,4.07626417,85.962,85.931,3.82015687]
[1773242613111,4.07626417,85.962,85.932,11.63710841]
[1773242613437,4.07626417,85.96,85.932,11.63710841]
[1773242613606,4.07626417,85.96,85.933,3.82015687]
[1773242613810,7.1992423,85.977,85.951,3.82015687]
[1773242614221,4.07626417,86.005,85.971,3.82015687]
[1773242614421,7.1938904,86.043,85.981,3.82015687]
[1773242614422,7.59107014,86.02,85.981,3.82015687]
[1773242614633,7.59107014,86.02,85.991,3.82015687]
[1773242614828,7.59107014,86.0,85.98,0.54672894]
[1773242615128,4.07626417,86.001,85.981,11.6304765]
[1773242615327,7.59107014,86.0,85.98,0.54672894]
[1773242615527,4.07626417,85.989,85.955,3.82015687]
[1773242615719,4.07626417,85.989,85.955,15.45413068]
[1773242615912,3.0,86.009,85.971,3.82015687]
[1773242615913,4.07626417,86.004,85.971,3.82015687]
[1773242616120,4.07626417,86.015,85.981,3.82015687]
[1773242616328,11.62601436,86.014,85.981,3.82015687]
[1773242616509,4.07626417,86.033,86.001,3.82015687]
[1773242616830,11.62331803,86.034,85.955,191.96088904]
[1773242616831,4.07626417,86.029,85.991,3.82015687]
[1773242617706,4.07626417,86.019,85.982,3.82015687]
[1773242618820,4.07626417,86.019,85.99,7.59107014]
[1773242619010,4.07626417,86.019,85.982,3.82015687]
[1773242619212,4.07626417,86.009,85.981,11.6304765]
[1773242619411,4.07626417,86.009,85.971,15.4519862]
[1773242619711,4.07626417,86.007,85.972,3.82015687]
[1773242620827,3.71749521,85.999,85.971,11.63182933]
[1773242621028,3.71749521,86.007,85.972,4.10644151]
[1773242621930,11.62709578,86.006,85.973,11.63155874]
[1773242622116,3.71749521,86.007,85.974,4.10644151]
[1773242622311,3.71749521,86.006,85.974,4.10644151]
[1773242622630,11.30856535,86.0,85.974,4.10644151]
[1773242623012,3.71749521,86.0,85.974,4.10644151]
[1773242623631,3.71749521,86.008,85.974,4.10644151]
[1773242624148,11.62696059,86.007,85.976,4.10644151]
[1773242624313,3.71749521,86.006,85.976,4.10644151]
[1773242626032,3.71749521,85.997,85.961,15.73962399]
[1773242626223,3.71749521,85.989,85.956,2.9]
[1773242626429,3.71749521,85.989,85.957,11.63372383]
[1773242627234,11.30856535,85.98,85.957,11.63372383]
[1773242627539,3.71749521,85.98,85.957,11.63372383]
[1773242628443,3.71749521,85.979,85.953,11.63426523]
[1773242629016,3.71749521,85.979,85.953,15.74070674]
[1773242629730,7.59107014,85.97,85.944,4.03911378]
[1773242629932,3.83653401,85.969,85.941,11.63588973]
[1773242630234,11.63223525,85.968,85.941,11.63588973]
[1773242630537,3.83653401,85.967,85.935,4.03911378]
[1773242630826,3.83653401,85.959,85.935,15.67581593]
[1773242631637,3.83653401,85.959,85.919,2.9]
[1773242631638,3.83653401,85.959,85.928,11.63754509]
[1773242632133,40.71282337,85.968,85.919,4.03911378]
[1773242632134,3.83653401,85.949,85.923,11.63825899]
[1773242632324,11.63494205,85.948,85.934,9.68192994]
[1773242632528,15.47147606,85.948,85.934,9.68192994]
[1773242633035,3.83653401,85.947,85.934,9.68192994]
[1773242634731,11.6352128,85.946,85.934,9.68192994]
[1773242635134,11.63421591,85.954,85.935,11.63670215]
[1773242635536,3.83653401,85.963,85.936,4.03911378]
[1773242635741,11.63304716,85.962,85.936,4.03911378]
[1773242636240,7.59107014,85.97,85.936,4.03911378]
[1773242636442,3.83653401,85.998,85.96,7.59107014]
[1773242636644,3.83653401,85.995,85.963,4.03911378]
[1773242637123,3.83653401,85.989,85.962,11.63304716]
[1773242637732,3.83653401,85.989,85.957,11.63368173]
[1773242637921,3.83653401,85.979,85.957,11.63368173]
[1773242639143,7.59107014,85.97,85.951,2.9]
[1773242639330,3.83653401,85.969,85.951,2.9]
[1773242640627,3.83653401,85.969,85.943,4.03911378]
[1773242640946,3.83653401,85.975,85.945,4.03911378]
[1773242641644,11.63088231,85.978,85.947,4.03911378]
[1773242641831,29.07362009,85.989,85.961,4.03911378]
[1773242641832,3.83653401,85.989,85.961,4.03911378]
[1773242642146,3.0,85.992,85.961,4.03911378]
[1773242642543,7.59107014,86.0,85.961,4.03911378]
[1773242642735,7.59107014,86.0,85.947,1.16350774]
[1773242642736,7.59107014,86.01,85.971,4.03911378]
[1773242642925,11.6258792,86.015,85.981,4.03911378]
[1773242643127,7.59107014,86.01,85.981,4.03911378]
[1773242643538,7.59107014,86.02,85.981,4.03911378]
[1773242643725,11.62533858,86.019,85.983,4.03911378]
[1773242644033,11.62466288,86.024,85.991,4.03911378]
[1773242644630,3.83653401,86.023,85.973,4.03911378]
[1773242644943,3.83653401,85.979,85.945,4.03911378]
[1773242645153,3.83653401,85.969,85.944,11.63548357]
[1773242645447,3.83653401,85.959,85.933,11.63690944]
[1773242645650,3.83653401,85.959,85.936,11.63656674]
[1773242645824,4.82477569,86.015,85.936,11.63656674]
[1773242645825,3.83653401,85.979,85.941,4.03911378]
[1773242647346,7.59107014,85.99,85.951,4.03911378]
[1773242648352,3.83653401,85.969,85.941,11.63588973]
[1773242648540,3.83653401,85.969,85.942,4.03911378]
[1773242648728,3.83653401,85.979,85.942,4.03911378]
[1773242650457,3.83653401,85.969,85.937,11.63630597]
[1773242650643,11.63088231,85.978,85.938,4.03911378]
[1773242650851,11.63088231,85.978,85.941,4.03911378]
[1773242651540,15.46605786,85.989,85.951,4.03911378]
[1773242651842,11.62871318,85.995,85.961,4.03911378]
[1773242652226,3.83653401,85.994,85.961,4.03911378]
[1773242653230,11.62885351,85.993,85.963,4.03911378]
[1773242654027,11.6258792,86.015,85.981,4.03911378]
[1773242654231,3.83653401,86.014,85.981,4.03911378]
[1773242654935,11.6258792,86.015,85.981,4.03911378]
[1773242655651,29.06244244,86.022,85.945,4.03911378]
[1773242655652,3.83653401,85.989,85.945,4.03911378]
[1773242655831,3.83653401,86.01,85.953,4.03911378]
[1773242656034,3.83653401,86.018,85.981,4.03911378]
[1773242656646,3.83653401,86.018,85.99,7.59107014]
[1773242656845,15.46187259,86.019,85.981,4.03911378]
[1773242657562,3.83653401,86.016,85.982,11.63034123]
[1773242657772,3.83653401,86.009,85.982,11.63034123]
[1773242657954,11.62560889,86.017,85.983,4.03911378]
[1773242658155,11.62560889,86.017,85.99,7.59107014]
[1773242658362,29.06097348,86.027,85.991,4.03911378]
[1773242658550,32.89750749,86.027,85.991,4.03911378]
[1773242658866,3.83653401,86.026,85.991,4.03911378]
[1773242659656,3.83653401,86.022,85.992,44.57681343]
[1773242659861,3.83653401,86.022,85.993,3.87535284]
[1773242660251,4.04592669,86.019,85.992,11.62898874]
[1773242660557,4.04592669,86.024,85.993,3.87535284]
[1773242661764,4.04592669,86.019,85.991,11.62909426]
[1773242661965,4.04592669,86.019,85.992,3.87535284]
[1773242662149,15.6707247,86.023,85.992,3.87535284]
[1773242662570,4.04592669,86.022,85.992,3.87535284]
[1773242663073,4.04592669,86.022,85.993,11.62885351]
[1773242663074,11.62506829,86.021,85.993,11.62885351]
[1773242663250,11.62506829,86.021,85.993,15.50420635]
[1773242663453,4.04592669,86.045,86.011,3.87535284]
[1773242663672,0.2,86.09,86.0,7.5716596]
[1773242663673,4.04592669,86.029,86.0,7.5716596]
[1773242663860,4.04592669,86.019,85.989,3.87535284]
[1773242664184,4.04592669,86.019,85.99,7.5716596]
[1773242664475,4.04592669,86.019,85.99,11.44701244]
[1773242664655,4.04592669,86.019,85.99,3.87535284]
[1773242665358,7.5716596,86.02,85.991,11.62912397]
[1773242665359,4.04592669,86.017,85.991,11.62912397]
[1773242666658,4.04592669,86.017,85.987,2.9]
[1773242666859,4.04592669,86.017,85.991,3.87535284]
[1773242667658,11.62574404,86.016,85.991,3.87535284]
[1773242667858,11.62574404,86.016,85.991,15.50437739]
[1773242668779,4.04592669,86.038,86.001,3.87535284]
[1773242668972,4.04592669,86.047,86.011,3.87535284]
[1773242669973,7.5716596,86.04,86.012,11.6262847]
[1773242670176,4.04592669,86.029,85.993,35.84743705]
[1773242670487,4.04592669,86.029,85.994,15.50407112]
[1773242670695,40.67591752,86.046,85.99,7.5716596]
[1773242670696,4.04592669,86.019,85.99,11.62920141]
[1773242670975,4.04592669,86.019,85.991,3.87535284]
[1773242672076,4.04592669,86.028,85.992,40.70146059]
[1773242672270,4.04592669,86.028,85.96,7.5716596]
[1773242672271,7.5716596,86.0,85.971,3.87535284]
[1773242672474,69.74392356,86.029,85.971,3.87535284]
[1773242672475,7.5716596,86.01,85.971,3.87535284]
[1773242673157,4.04592669,86.009,85.971,3.87535284]
[1773242673367,4.04592669,85.999,85.964,11.63277651]
[1773242673677,4.04592669,85.999,85.964,15.50812935]
[1773242673879,4.04592669,85.999,85.965,3.87535284]
[1773242674678,15.67410408,85.998,85.967,3.87535284]
[1773242674877,7.5716596,85.99,85.967,3.87535284]
[1773242675260,4.04592669,85.997,85.967,3.87535284]
[1773242676279,11.62817739,85.998,85.967,3.87535284]
[1773242676474,46.67950632,86.06,85.981,3.87535284]
[1773242676475,11.62639124,86.012,85.981,3.87535284]
[1773242676672,4.04592669,86.011,85.983,3.87535284]
[1773242676981,4.04592669,86.011,85.982,11.63034123]
[1773242676982,11.62209592,86.043,86.001,3.87535284]
[1773242677197,29.05192903,86.053,86.001,3.87535284]
[1773242677198,11.62162802,86.047,86.011,3.87535284]
[1773242677480,0.2,86.05,86.021,3.87535284]
[1773242677859,7.5716596,86.04,86.007,2.9]
[1773242678063,4.04592669,86.029,85.992,3.87535284]
[1773242678264,4.04592669,86.019,85.99,2.9]
[1773242678562,7.5716596,86.01,85.99,2.9]
[1773242678782,4.04592669,86.008,85.99,2.9]
[1773242679083,4.04592669,86.008,85.976,3.87535284]
[1773242679876,11.62669023,86.009,85.981,3.87535284]
[1773242680072,11.62669023,86.009,85.972,3.9733952]
[1773242680073,3.71388731,86.008,85.972,3.9733952]
[1773242680378,3.71388731,86.008,85.973,11.63155874]
[1773242680760,11.62696059,86.007,85.973,11.63155874]
[1773242680962,11.62696059,86.007,85.974,3.9733952]
[1773242681162,3.71388731,86.006,85.974,3.9733952]
[1773242682584,3.71388731,86.011,85.981,3.9733952]
[1773242682778,29.06061335,86.028,85.993,3.9733952]
[1773242683503,11.6242575,86.027,85.993,3.9733952]
[1773242684386,3.71388731,86.019,85.993,3.9733952]
[1773242684684,7.5716596,86.02,85.993,3.9733952]
[1773242684885,40.68868504,86.019,85.993,3.9733952]
[1773242686974,44.40257235,86.019,85.993,3.9733952]
[1773242687866,3.71388731,86.018,85.993,3.9733952]
[1773242688181,3.71388731,86.009,85.976,11.63115287]
[1773242688376,3.71388731,86.009,85.977,3.9733952]
[1773242688768,40.69388893,86.008,85.977,3.9733952]
[1773242688970,3.71388731,86.007,85.977,15.60437303]
[1773242689892,3.71388731,86.007,85.978,4.00451306]
[1773242690188,58.11693236,86.034,85.977,11.63097783]
[1773242690189,3.91407218,86.027,85.991,4.00451306]
[1773242690489,11.62439262,86.026,85.991,4.00451306]
[1773242691269,11.62439262,86.026,85.993,4.00451306]
[1773242691474,3.91407218,86.035,86.001,4.00451306]
[1773242691676,7.5716596,86.03,86.001,4.00451306]
[1773242693288,7.5716596,86.03,85.972,1.1631694]
[1773242693289,3.11514567,86.007,85.971,4.00451306]
[1773242693492,7.5716596,85.99,85.971,4.00451306]
[1773242693978,3.11514567,86.007,85.971,4.00451306]
[1773242694178,11.62682541,86.008,85.972,4.00451306]
[1773242694582,11.62682541,86.008,85.98,7.5716596]
[1773242694786,11.62634555,86.012,85.981,4.00451306]
[1773242694988,11.62634555,86.012,85.98,7.5716596]
[1773242694989,7.5716596,86.03,85.991,4.00451306]
[1773242695176,29.06118907,86.026,85.991,4.00451306]
[1773242695381,29.06118907,86.026,85.993,4.00451306]
[1773242695577,7.5716596,86.02,85.993,4.00451306]
[1773242697093,7.5716596,86.0,85.966,4.00451306]
[1773242697272,7.5716596,85.99,85.966,4.00451306]
[1773242697476,11.62939445,85.989,85.966,4.00451306]
[1773242697675,11.62939445,85.989,85.966,11.63238265]
[1773242697980,7.5716596,86.0,85.967,4.00451306]
[1773242698179,7.5716596,85.99,85.955,4.00451306]
[1773242698379,7.5716596,85.99,85.961,4.00451306]
[1773242698579,7.5716596,86.0,85.961,4.00451306]
[1773242698778,7.5716596,86.0,85.971,4.00451306]
[1773242699096,11.62682541,86.008,85.971,4.00451306]
[1773242699293,11.62682541,86.008,85.957,11.63365036]
[1773242699294,11.62682541,86.008,85.981,4.00451306]
[1773242699488,11.62682541,86.008,85.98,7.5716596]
[1773242699489,11.62533858,86.019,85.983,4.00451306]
[1773242699691,40.68404705,86.029,85.991,4.00451306]
[1773242700202,7.5716596,86.02,85.991,4.00451306]
[1773242700784,40.68404705,86.029,85.978,2.9]
[1773242700785,10.67528453,86.01,85.978,2.9]
[1773242700994,7.5716596,85.99,85.973,4.00451306]
[1773242701182,7.5716596,86.0,85.973,4.00451306]
[1773242701796,11.62804218,85.999,85.973,4.00451306]
[1773242702499,7.5716596,86.01,85.975,4.00451306]
[1773242703293,40.69105028,86.014,85.981,4.00451306]
[1773242703487,11.62533858,86.019,85.991,4.00451306]
[1773242704184,40.68868504,86.019,85.992,11.62898874]
[1773242704403,40.68868504,86.019,85.993,4.00451306]
[1773242705097,7.5716596,86.01,85.973,4.00451306]
[1773242705594,40.68868504,86.019,85.981,4.00451306]
[1773242705804,11.62533858,86.019,85.981,4.00451306]
[1773242706021,2.98,86.045,85.99,7.5716596]
[1773242706308,7.5716596,86.03,86.001,4.00451306]
[1773242706511,7.5716596,86.04,86.001,4.00451306]
[1773242707695,19.39294022,86.05,86.011,4.00451306]
[1773242707996,19.39294022,86.05,86.001,4.00451306]
[1773242707997,7.5716596,86.03,86.001,4.00451306]
[1773242708393,7.5716596,86.02,85.992,6.90451306]
[1773242708708,3.09583961,86.009,85.97,7.5716596]
[1773242708909,7.5716596,86.0,85.971,4.00451306]
[1773242710194,7.5716596,86.0,85.97,11.63194472]
[1773242710195,7.5716596,86.01,85.973,4.00451306]
[1773242710386,11.62682541,86.008,85.973,4.00451306]
[1773242710589,7.5716596,86.0,85.973,4.00451306]
[1773242711192,11.62682541,86.008,85.973,4.00451306]
[1773242711393,7.5716596,86.0,85.973,4.00451306]
[1773242711901,11.62682541,86.008,85.973,4.00451306]
[1773242712214,11.62547373,86.018,85.983,4.00451306]
[1773242712391,7.5716596,86.01,85.983,4.00451306]
[1773242713542,7.5716596,86.01,85.972,4.00451306]
[1773242714406,7.5716596,86.01,85.974,4.00451306]
[1773242714407,11.62669023,86.009,85.974,4.00451306]
[1773242715611,11.62669023,86.009,85.981,4.00451306]
[1773242715806,7.5716596,86.01,85.982,4.00451306]
[1773242717089,10.65837151,86.0,85.969,4.00451306]
[1773242717410,7.5716596,86.0,85.969,4.00451306]
[1773242718016,11.62804218,85.999,85.971,4.00451306]
[1773242718518,40.69814764,85.999,85.971,4.00451306]
[1773242718709,11.62804218,85.999,85.971,4.00451306]
[1773242719519,7.5716596,86.02,85.981,4.00451306]
[1773242719816,11.62533858,86.019,85.981,4.00451306]
[1773242720018,40.68868504,86.019,85.983,3.81797056]
[1773242721896,58.1126808,86.04,86.001,3.81797056]
[1773242721897,7.57285006,86.04,86.001,3.81797056]
[1773242722096,7.57285006,86.04,85.982,40.70619431]
[1773242722097,11.62182578,86.045,86.011,3.81797056]
[1773242722298,7.57285006,86.04,86.011,3.81797056]
[1773242722996,10.65309052,86.04,86.011,3.81797056]
[1773242723318,7.57285006,86.03,86.003,3.81797056]
[1773242723614,3.08024046,86.039,86.003,3.81797056]
[1773242724314,3.08024046,86.039,86.005,3.81797056]
[1773242724315,11.62277133,86.038,86.005,3.81797056]
[1773242724911,7.57285006,86.03,86.004,11.62736616]
[1773242725118,7.57285006,86.02,85.993,3.81797056]
[1773242725323,3.07848558,86.029,85.993,3.81797056]
[1773242726416,3.07762322,86.019,85.991,2.9]
[1773242726712,7.57285006,86.01,85.991,2.9]
[1773242726918,3.07762322,86.019,85.991,2.9]
[1773242727100,3.07762322,86.019,85.992,11.62898874]
[1773242727516,3.07762322,86.019,85.991,2.9]
[1773242727725,3.07762322,86.019,85.989,11.62933356]
[1773242728098,14.70005049,86.028,85.991,3.81797056]
[1773242728303,11.62412237,86.028,85.991,3.81797056]
[1773242729025,11.62412237,86.028,85.993,3.81797056]
[1773242729521,7.57285006,86.02,85.993,3.81797056]
[1773242730400,11.62412237,86.028,85.993,3.81797056]
[1773242730800,11.62347894,86.033,86.001,3.81797056]
[1773242731622,3.07427173,86.039,86.0,7.57285006]
[1773242731623,11.62290642,86.037,86.003,3.81797056]
[1773242731941,11.62290642,86.037,86.002,11.62763656]
[1773242731942,3.07265318,86.066,86.031,3.81797056]
[1773242732137,11.61993516,86.059,86.031,3.81797056]
[1773242732335,7.57285006,86.05,86.021,3.81797056]
[1773242732624,11.61993516,86.059,86.021,3.81797056]
[1773242733009,0.2,86.06,86.031,3.81797056]
[1773242733204,11.61993516,86.059,86.031,3.81797056]
[1773242734216,11.61993516,86.059,86.032,11.62358192]
[1773242734429,11.61993516,86.059,86.031,3.81797056]
[1773242734721,40.66977306,86.059,86.031,3.81797056]
[1773242734921,7.57285006,86.05,86.021,3.81797056]
[1773242735115,3.07029439,86.058,86.022,3.81797056]
[1773242735322,11.61993516,86.059,86.031,3.81797056]
[1773242735505,11.61993516,86.059,86.022,3.81797056]
[1773242735506,3.07029439,86.058,86.022,3.81797056]
[1773242736618,3.07029439,86.058,86.024,3.81797056]
[1773242736619,11.62020521,86.057,86.024,3.81797056]
[1773242736808,3.06952612,86.056,86.024,3.81797056]
[1773242737616,0.2,86.06,86.031,3.81797056]
[1773242737813,11.61993516,86.059,86.031,3.81797056]
[1773242738011,14.68795112,86.059,86.031,3.81797056]
[1773242738206,3.06801596,86.049,86.016,3.81797056]
[1773242738607,11.61993516,86.059,86.021,3.81797056]
[1773242739715,11.61993516,86.059,86.023,3.81797056]
[1773242741015,14.68503347,86.059,86.023,3.81797056]
[1773242741615,3.06509831,86.047,86.011,4.03885846]
[1773242741924,3.06509831,86.039,86.002,4.03885846]
[1773242742618,3.06438973,86.029,86.002,4.03885846]
[1773242742813,11.6214206,86.048,86.011,4.03885846]
[1773242743833,11.6214206,86.048,86.013,4.03885846]
[1773242744342,3.06299687,86.039,86.005,4.03885846]
[1773242745038,3.06231242,86.029,86.0,11.62783577]
[1773242745923,11.62412237,86.028,86.002,11.62763656]
[1773242746431,11.62412237,86.028,86.003,4.03885846]
[1773242749136,3.0269751,86.03,86.003,4.03885846]
[1773242750040,3.05836769,86.029,85.993,3.77948241]
[1773242750224,3.05836769,86.019,85.992,2.9]
[1773242750540,3.05836769,86.019,85.986,11.62977662]
[1773242750738,29.05938795,86.031,85.97,2.9]
[1773242750739,3.05836769,85.999,85.97,2.9]
[1773242750944,3.0269751,86.0,85.971,3.77948241]
[1773242751118,11.62804218,85.999,85.971,15.41131174]
[1773242751433,3.0269751,85.99,85.963,15.41231037]
[1773242751615,3.0269751,85.99,85.964,3.77948241]
[1773242751817,11.62682541,86.008,85.971,3.77948241]
[1773242752530,11.62682541,86.008,85.981,3.77948241]
[1773242752730,11.62600935,86.015,85.981,3.77948241]
[1773242752933,11.62452775,86.025,85.991,3.77948241]
[1773242753325,3.0269751,86.02,85.992,3.77948241]
[1773242753539,3.0269751,86.02,85.992,15.40847115]
[1773242753827,3.0269751,86.02,85.993,3.77948241]
[1773242754134,3.05588575,86.019,85.981,3.77948241]
[1773242754544,3.0269751,86.02,85.981,3.77948241]
[1773242754719,40.68584713,86.025,85.991,3.77948241]
[1773242755027,40.68584713,86.025,85.98,11.63058786]
[1773242755028,11.62452775,86.025,86.001,3.77948241]
[1773242755227,3.69383402,86.055,85.981,1.16304765]
[1773242755228,11.62034024,86.056,86.021,3.77948241]
[1773242755432,3.0269751,86.05,86.021,3.77948241]
[1773242755823,3.0269751,86.04,86.021,3.77948241]
[1773242756034,3.0269751,86.04,86.012,3.77948241]
[1773242756230,40.67119084,86.056,85.997,2.9]
[1773242756231,3.05468713,86.029,85.997,2.9]
[1773242756434,3.05468713,86.029,85.998,3.77948241]
[1773242756620,3.0269751,86.02,85.997,2.9]
[1773242757136,3.0269751,86.03,85.998,3.77948241]
[1773242757525,40.68395541,86.029,85.998,3.77948241]
[1773242758842,40.68395541,86.029,85.988,11.62946059]
[1773242758843,7.57096004,86.02,85.988,11.62946059]
[1773242759023,7.57096004,86.02,85.988,15.408943]
[1773242760438,11.62533858,86.019,85.989,3.77948241]
[1773242760640,11.62533858,86.019,85.991,3.77948241]
[1773242761037,7.57096004,86.03,85.991,3.77948241]
[1773242761448,7.57096004,86.02,85.991,3.77948241]
[1773242761943,3.05180899,86.019,85.991,3.77948241]
[1773242762247,3.05125304,86.009,85.973,3.77948241]
[1773242762544,40.69010415,86.016,85.981,3.77948241]
[1773242762755,7.57096004,86.01,85.981,3.77948241]
[1773242763049,3.05125304,86.015,85.981,3.77948241]
[1773242763250,40.69010415,86.016,85.981,3.77948241]
[1773242763566,11.62574404,86.016,85.981,3.77948241]
[1773242764969,3.04962323,86.015,85.98,7.57096004]
[1773242765256,3.04962323,86.015,85.97,3.77948241]
[1773242765257,3.04962323,86.009,85.971,3.77948241]
[1773242765752,10.62058327,86.0,85.971,3.77948241]
[1773242766343,7.57096004,86.0,85.972,3.77948241]
[1773242766547,7.57096004,85.99,85.961,2.9]
[1773242766732,40.69010415,86.016,85.961,2.9]
[1773242766733,7.57096004,85.98,85.961,2.9]
[1773242767128,11.63074704,85.979,85.961,2.9]
[1773242767738,3.04856764,85.978,85.946,3.77948241]
[1773242768137,11.63074704,85.979,85.951,3.77948241]
[1773242768653,3.04804893,85.978,85.943,15.41510136]
[1773242768956,7.57096004,85.97,85.944,3.77948241]
[1773242769142,11.63209994,85.969,85.944,3.77948241]
[1773242769346,3.04753617,85.968,85.942,19.65941715]
[1773242769651,7.57096004,85.96,85.942,19.65941715]
[1773242769831,3.04753617,85.968,85.942,19.65941715]
[1773242770036,11.63209994,85.969,85.942,23.43889956]
[1773242770466,11.63209994,85.969,85.942,19.65941715]
[1773242770754,46.51643878,85.992,85.942,19.65941715]
[1773242770755,14.67642375,85.989,85.951,3.77948241]
[1773242770961,11.62939445,85.989,85.961,3.77948241]
[1773242771846,7.57096004,85.99,85.961,15.41265309]
[1773242772543,7.57096004,85.99,85.962,3.77948241]
[1773242772935,7.57096004,85.98,85.952,3.77948241]
[1773242773134,7.57096004,85.97,85.952,3.77948241]
[1773242773351,7.57096004,85.97,85.943,3.77948241]
[1773242773737,11.63074704,85.979,85.943,3.77948241]
[1773242774054,11.63074704,85.979,85.94,7.57096004]
[1773242774055,7.57096004,85.99,85.951,3.77948241]
[1773242777161,11.62939445,85.989,85.953,3.77948241]
[1773242777458,11.62939445,85.989,85.961,3.77948241]
[1773242777755,11.62790697,86.0,85.971,3.77948241]
[1773242778335,3.04317842,85.999,85.971,3.77948241]
[1773242778944,19.19886701,86.0,85.971,3.77948241]
[1773242779650,19.19886701,86.0,85.972,11.63169403]
[1773242780742,51.31001685,86.0,85.971,3.77948241]
[1773242780944,7.57096004,85.99,85.971,3.77948241]
[1773242781155,3.0413824,85.999,85.971,3.77948241]
[1773242781361,40.69862088,85.998,85.971,3.77948241]
[1773242781560,40.69862088,85.998,85.963,2.9]
[1773242781561,3.0413824,85.989,85.963,2.9]
[1773242781856,40.69862088,85.998,85.963,2.9]
[1773242781857,3.04094621,85.979,85.963,2.9]
[1773242782040,3.04094621,85.979,85.946,3.92441326]
[1773242782443,7.5784115,85.97,85.946,3.92441326]
[1773242782662,7.5784115,85.97,85.93,7.6784115]
[1773242782663,7.5784115,85.96,85.936,3.92441326]
[1773242782969,3.04051503,85.959,85.93,0.1]
[1773242783259,3.04051503,85.959,85.93,4.02441326]
[1773242783463,11.63358849,85.958,85.931,11.63724383]
[1773242783843,3.04008881,85.949,85.93,0.1]
[1773242784848,7.5784115,85.94,85.911,3.92441326]
[1773242785464,11.63494205,85.948,85.913,3.92441326]
[1773242785656,7.5784115,85.95,85.913,3.92441326]
[1773242785863,19.21319389,85.95,85.921,3.92441326]
[1773242787668,7.5784115,85.94,85.91,3.92441326]
[1773242788045,7.5784115,85.94,85.912,3.92441326]
[1773242788750,19.21319389,85.95,85.912,3.92441326]
[1773242789274,2.93803001,85.939,85.907,2.9]
[1773242789446,10.51644151,85.93,85.907,2.9]
[1773242789646,7.5784115,85.92,85.889,15.56734774]
[1773242789949,2.93763233,85.919,85.89,3.92441326]
[1773242790439,7.5784115,85.92,85.891,3.92441326]
[1773242790642,2.93763233,85.927,85.891,3.92441326]
[1773242790854,7.5784115,85.92,85.891,3.92441326]
[1773242791258,2.93763233,85.927,85.891,3.92441326]
[1773242791756,7.5784115,85.92,85.892,11.64252782]
[1773242791958,2.93726072,85.925,85.893,3.92441326]
[1773242792152,2.93726072,85.925,85.892,11.64252782]
[1773242792153,7.5784115,85.95,85.911,3.92441326]
[1773242792865,7.5784115,85.94,85.911,3.92441326]
[1773242793059,7.5784115,85.93,85.901,3.92441326]
[1773242793366,7.5784115,85.93,85.894,4.06422567]
[1773242793367,2.93653026,85.929,85.895,3.92441326]
[1773242793665,7.5784115,85.92,85.894,2.9]
[1773242793847,19.2172791,85.92,85.895,3.92441326]
[1773242794243,19.2172791,85.92,85.887,3.92441326]
[1773242794466,2.93617131,85.919,85.887,3.92441326]
[1773242796264,58.17132618,85.953,85.887,3.92441326]
[1773242796265,7.5784115,85.91,85.887,3.92441326]
[1773242796965,2.93546572,85.917,85.888,11.64307004]
[1773242797962,2.93546572,85.917,85.887,3.92441326]
[1773242798172,2.93546572,85.917,85.886,11.64334117]
[1773242799167,7.5784115,85.91,85.886,11.64334117]
[1773242799364,2.93443745,85.909,85.882,11.64383521]
[1773242799563,2.93443745,85.909,85.88,4.02441326]
[1773242799564,19.21720574,85.92,85.886,3.92441326]
[1773242799777,11.6382206,85.924,85.891,3.92441326]